[Event "*** MasterClass Titled Tuesday Blitz"]
[Site "Chess.com"]
[Date "2017.10.03"]
[Round "3"]
[White "Cayse"]
[Black "Alexander_Moskalenko"]
[Result "0-1"]
[WhiteElo "2639"]
[BlackElo "2642"]
[TimeControl "180+2"]
[EndTime "13:39:11 PDT"]
[Termination "Alexander_Moskalenko won on time"]

1. e4 {[%clk 0:03:01.9]} 1... d6 {[%clk 0:02:51.8]} 2. d4 {[%clk 0:03:01.9]}
2... Nf6 {[%clk 0:02:53.4]} 3. Nc3 {[%clk 0:03:02.1]} 3... e5 {[%clk 0:02:55]}
4. dxe5 {[%clk 0:03:01.7]} 4... dxe5 {[%clk 0:02:55.7]} 5. Qxd8+ {[%clk
0:03:03.2]} 5... Kxd8 {[%clk 0:02:57.6]} 6. Bg5 {[%clk 0:03:04.3]} 6... Bd6
{[%clk 0:02:56.4]} 7. O-O-O {[%clk 0:03:03.7]} 7... Nd7 {[%clk 0:02:47.1]} 8.
Bc4 {[%clk 0:03:01.9]} 8... Ke8 {[%clk 0:02:41.9]} 9. Nge2 {[%clk 0:02:28.1]}
9... h6 {[%clk 0:02:41.4]} 10. Bh4 {[%clk 0:02:29.1]} 10... a6 {[%clk
0:02:42.6]} 11. f3 {[%clk 0:02:26.1]} 11... b5 {[%clk 0:02:41.6]} 12. Bb3 {[%clk
0:02:20.1]} 12... Bb7 {[%clk 0:02:39.6]} 13. Kb1 {[%clk 0:02:21]} 13... Be7
{[%clk 0:02:00.7]} 14. Rd2 {[%clk 0:01:56.7]} 14... Nc5 {[%clk 0:01:43.2]} 15.
Rhd1 {[%clk 0:01:54.9]} 15... Nxb3 {[%clk 0:01:42.6]} 16. axb3 {[%clk 0:01:55]}
16... Nxe4 {[%clk 0:01:31]} 17. Nxe4 {[%clk 0:01:44.6]} 17... Bxh4 {[%clk
0:01:31.9]} 18. N2c3 {[%clk 0:01:46]} 18... Rd8 {[%clk 0:01:12.7]} 19. Nc5
{[%clk 0:01:43]} 19... Rxd2 {[%clk 0:01:08.8]} 20. Rxd2 {[%clk 0:01:43.6]} 20...
Bc8 {[%clk 0:01:10.4]} 21. Nd5 {[%clk 0:01:39.8]} 21... Bd8 {[%clk 0:01:10.7]}
22. Nb4 {[%clk 0:01:33.6]} 22... Be7 {[%clk 0:01:11.1]} 23. Nbxa6 {[%clk
0:01:27.4]} 23... Bxc5 {[%clk 0:00:56.7]} 24. Nxc5 {[%clk 0:01:27.7]} 24... Ke7
{[%clk 0:00:58.2]} 25. Re2 {[%clk 0:01:27.7]} 25... f6 {[%clk 0:00:59.2]} 26. f4
{[%clk 0:01:28.5]} 26... Kd6 {[%clk 0:00:58.6]} 27. Ne4+ {[%clk 0:01:27.8]}
27... Kc6 {[%clk 0:00:56]} 28. fxe5 {[%clk 0:01:28.4]} 28... fxe5 {[%clk
0:00:57.9]} 29. Kc1 {[%clk 0:01:29.1]} 29... Rf8 {[%clk 0:00:57.3]} 30. Kd2
{[%clk 0:01:28.3]} 30... b4 {[%clk 0:00:49.2]} 31. Nf2 {[%clk 0:01:22.8]} 31...
Ba6 {[%clk 0:00:47.7]} 32. Nd3 {[%clk 0:01:23.8]} 32... Bxd3 {[%clk 0:00:48.6]}
33. Kxd3 {[%clk 0:01:25]} 33... Kd5 {[%clk 0:00:50.2]} 34. c3 {[%clk 0:01:20.2]}
34... c5 {[%clk 0:00:44.9]} 35. Rd2 {[%clk 0:01:13.3]} 35... Rf4 {[%clk
0:00:35.2]} 36. Ke3+ {[%clk 0:01:14]} 36... Ke6 {[%clk 0:00:36.1]} 37. Rd8
{[%clk 0:01:14.7]} 37... Rf1 {[%clk 0:00:32.4]} 38. Re8+ {[%clk 0:01:15.3]}
38... Kd6 {[%clk 0:00:33.1]} 39. Rd8+ {[%clk 0:01:15.4]} 39... Kc6 {[%clk
0:00:29.6]} 40. Rc8+ {[%clk 0:01:05.2]} 40... Kd6 {[%clk 0:00:28.8]} 41. Rd8+
{[%clk 0:00:58.3]} 41... Kc6 {[%clk 0:00:28.7]} 42. Rc8+ {[%clk 0:00:49.6]}
42... Kb6 {[%clk 0:00:29.9]} 43. cxb4 {[%clk 0:00:26.6]} 43... cxb4 {[%clk
0:00:31.8]} 44. Rc4 {[%clk 0:00:27.7]} 44... Rb1 {[%clk 0:00:29.3]} 45. Rxb4+
{[%clk 0:00:28.1]} 45... Kc5 {[%clk 0:00:30.5]} 46. Rc4+ {[%clk 0:00:29]} 46...
Kd5 {[%clk 0:00:31.4]} 47. Rc2 {[%clk 0:00:30.4]} 47... Re1+ {[%clk 0:00:32.6]}
48. Re2 {[%clk 0:00:27.6]} 48... Ra1 {[%clk 0:00:29.4]} 49. b4 {[%clk
0:00:27.9]} 49... Ra4 {[%clk 0:00:29.6]} 50. Rd2+ {[%clk 0:00:26]} 50... Ke6
{[%clk 0:00:30.8]} 51. Kd3 {[%clk 0:00:25.9]} 51... Rxb4 {[%clk 0:00:30.2]} 52.
Kc3 {[%clk 0:00:27.4]} 52... Rb8 {[%clk 0:00:29.6]} 53. b4 {[%clk 0:00:28.7]}
53... e4 {[%clk 0:00:31.1]} 54. Kc4 {[%clk 0:00:25.9]} 54... Ke5 {[%clk
0:00:31.4]} 55. Rd7 {[%clk 0:00:23.4]} 55... Rc8+ {[%clk 0:00:32.6]} 56. Kb3
{[%clk 0:00:23.8]} 56... e3 {[%clk 0:00:30.2]} 57. b5 {[%clk 0:00:23.1]} 57...
Ke4 {[%clk 0:00:26.7]} 58. Rxg7 {[%clk 0:00:14]} 58... e2 {[%clk 0:00:19.9]} 59.
Re7+ {[%clk 0:00:14.8]} 59... Kd3 {[%clk 0:00:21.1]} 60. Rd7+ {[%clk 0:00:11.4]}
60... Ke3 {[%clk 0:00:19.6]} 61. Re7+ {[%clk 0:00:12.4]} 61... Kf2 {[%clk
0:00:20.9]} 62. Kb4 {[%clk 0:00:13.1]} 62... e1=Q+ {[%clk 0:00:21]} 63. Rxe1
{[%clk 0:00:13.5]} 63... Kxe1 {[%clk 0:00:22.9]} 64. g4 {[%clk 0:00:14.8]} 64...
Rg8 {[%clk 0:00:21.6]} 65. h3 {[%clk 0:00:15.6]} 65... Kf2 {[%clk 0:00:22.1]}
66. b6 {[%clk 0:00:16.6]} 66... Kg3 {[%clk 0:00:23.4]} 67. Kc5 {[%clk
0:00:14.7]} 67... Kxh3 {[%clk 0:00:24.4]} 0-1

[Event "*** MasterClass Titled Tuesday Blitz"]
[Site "Chess.com"]
[Date "2017.10.03"]
[Round "3"]
[White "MisaPap"]
[Black "Gordima"]
[Result "0-1"]
[WhiteElo "2400"]
[BlackElo "2566"]
[TimeControl "180+2"]
[EndTime "13:39:24 PDT"]
[Termination "Gordima won by resignation"]

1. e4 {[%clk 0:03:01.9]} 1... c5 {[%clk 0:02:58.7]} 2. c3 {[%clk 0:03:02.4]}
2... d6 {[%clk 0:02:56.8]} 3. d4 {[%clk 0:03:03.1]} 3... Nf6 {[%clk 0:02:58.4]}
4. dxc5 {[%clk 0:03:03.7]} 4... dxc5 {[%clk 0:02:46.2]} 5. Qxd8+ {[%clk
0:03:03]} 5... Kxd8 {[%clk 0:02:48.1]} 6. f3 {[%clk 0:03:04.4]} 6... e6 {[%clk
0:02:38.2]} 7. Na3 {[%clk 0:03:01.9]} 7... Nbd7 {[%clk 0:02:34.3]} 8. Bf4 {[%clk
0:02:59.3]} 8... Nh5 {[%clk 0:02:33.7]} 9. Be3 {[%clk 0:02:57.1]} 9... Bd6
{[%clk 0:02:33.5]} 10. Nc4 {[%clk 0:02:57.5]} 10... Bc7 {[%clk 0:02:33.8]} 11.
O-O-O {[%clk 0:02:57.9]} 11... Ke7 {[%clk 0:02:34.5]} 12. a4 {[%clk 0:02:43.9]}
12... b6 {[%clk 0:02:33.4]} 13. Na3 {[%clk 0:02:24.7]} 13... Rd8 {[%clk
0:02:30.2]} 14. Ne2 {[%clk 0:02:24.8]} 14... Bb7 {[%clk 0:02:28.3]} 15. g4
{[%clk 0:02:25]} 15... Nhf6 {[%clk 0:02:29.9]} 16. Nb5 {[%clk 0:02:26]} 16...
Bb8 {[%clk 0:02:30.7]} 17. g5 {[%clk 0:02:19.9]} 17... Ne8 {[%clk 0:02:31.6]}
18. Ng3 {[%clk 0:02:18]} 18... Bc6 {[%clk 0:02:27.8]} 19. b3 {[%clk 0:02:14]}
19... a6 {[%clk 0:02:18.9]} 20. Na3 {[%clk 0:02:14.5]} 20... Nd6 {[%clk
0:01:55.8]} 21. Be2 {[%clk 0:01:41.8]} 21... Bc7 {[%clk 0:01:48.7]} 22. Nh5
{[%clk 0:01:40.7]} 22... Ne8 {[%clk 0:01:43.8]} 23. Kb2 {[%clk 0:01:34.6]} 23...
Rdb8 {[%clk 0:01:44.5]} 24. Nf4 {[%clk 0:01:28.9]} 24... b5 {[%clk 0:01:30.5]}
25. axb5 {[%clk 0:01:26.7]} 25... axb5 {[%clk 0:01:32.4]} 26. Nd3 {[%clk
0:01:18.3]} 26... Bb6 {[%clk 0:01:27]} 27. Bf4 {[%clk 0:01:15.3]} 27... Rb7
{[%clk 0:01:26.5]} 28. Nc2 {[%clk 0:01:01.4]} 28... Rba7 {[%clk 0:01:15]} 29.
Ra1 {[%clk 0:01:01.7]} 29... Rxa1 {[%clk 0:01:16.1]} 30. Nxa1 {[%clk 0:01:02.3]}
30... Nd6 {[%clk 0:00:58.6]} 31. Rd1 {[%clk 0:00:59.6]} 31... Nb7 {[%clk
0:00:59.3]} 32. Ne5 {[%clk 0:00:53.3]} 32... Nxe5 {[%clk 0:00:59.7]} 33. Bxe5
{[%clk 0:00:54.8]} 33... f6 {[%clk 0:01:01.3]} 34. Bf4 {[%clk 0:00:53.6]} 34...
Rd8 {[%clk 0:00:48.3]} 35. gxf6+ {[%clk 0:00:44.5]} 35... gxf6 {[%clk
0:00:48.1]} 36. Rg1 {[%clk 0:00:45.3]} 36... Kf7 {[%clk 0:00:49.6]} 37. Be3
{[%clk 0:00:40.9]} 37... Bc7 {[%clk 0:00:46.9]} 38. h4 {[%clk 0:00:40]} 38...
Rg8 {[%clk 0:00:45.8]} 39. Rxg8 {[%clk 0:00:40.1]} 39... Kxg8 {[%clk 0:00:47.7]}
40. Nc2 {[%clk 0:00:41.4]} 40... Kg7 {[%clk 0:00:44]} 41. b4 {[%clk 0:00:34.7]}
41... c4 {[%clk 0:00:37.1]} 42. Nd4 {[%clk 0:00:24.4]} 42... Bd7 {[%clk
0:00:38.3]} 43. f4 {[%clk 0:00:25.3]} 43... Nd6 {[%clk 0:00:38.8]} 44. Bf3
{[%clk 0:00:24.5]} 44... e5 {[%clk 0:00:40.2]} 45. fxe5 {[%clk 0:00:24.5]} 45...
fxe5 {[%clk 0:00:41.6]} 46. Ne2 {[%clk 0:00:22.9]} 46... Bc6 {[%clk 0:00:34.8]}
47. Ng3 {[%clk 0:00:23.6]} 47... Kf6 {[%clk 0:00:30.9]} 48. Bg5+ {[%clk
0:00:23.2]} 48... Kg7 {[%clk 0:00:25.8]} 49. Be3 {[%clk 0:00:20.7]} 49... Kf7
{[%clk 0:00:24.4]} 50. Bh5+ {[%clk 0:00:20.6]} 50... Kf6 {[%clk 0:00:23.4]} 51.
Bg5+ {[%clk 0:00:21]} 51... Kg7 {[%clk 0:00:24.4]} 52. Bf3 {[%clk 0:00:22.2]}
52... Bb6 {[%clk 0:00:21.7]} 53. h5 {[%clk 0:00:18.2]} 53... Kf7 {[%clk
0:00:18.6]} 54. Kc1 {[%clk 0:00:10.1]} 54... Bf2 {[%clk 0:00:19.5]} 55. Nh1
{[%clk 0:00:11.2]} 55... Be1 {[%clk 0:00:18.7]} 56. Bd2 {[%clk 0:00:06.6]} 56...
Bxd2+ {[%clk 0:00:19.5]} 57. Kxd2 {[%clk 0:00:08.5]} 57... Bxe4 {[%clk
0:00:21.4]} 58. Ke2 {[%clk 0:00:06.8]} 58... Bxf3+ {[%clk 0:00:17.4]} 59. Kxf3
{[%clk 0:00:07.9]} 59... Kf6 {[%clk 0:00:18.9]} 60. Ng3 {[%clk 0:00:08]} 60...
Kg5 {[%clk 0:00:20.3]} 61. Ne4+ {[%clk 0:00:08.8]} 61... Nxe4 {[%clk 0:00:21.1]}
62. Kxe4 {[%clk 0:00:10.7]} 62... Kxh5 {[%clk 0:00:22.8]} 63. Kxe5 {[%clk
0:00:12.6]} 63... Kg4 {[%clk 0:00:24.2]} 64. Kd5 {[%clk 0:00:14.5]} 64... h5
{[%clk 0:00:25.6]} 65. Kc5 {[%clk 0:00:16.4]} 65... h4 {[%clk 0:00:27.3]} 66.
Kxb5 {[%clk 0:00:18.3]} 66... h3 {[%clk 0:00:29]} 67. Ka6 {[%clk 0:00:19.5]}
67... h2 {[%clk 0:00:30.6]} 68. b5 {[%clk 0:00:21.4]} 68... h1=Q {[%clk
0:00:32.3]} 69. b6 {[%clk 0:00:23.3]} 69... Qa8+ {[%clk 0:00:33.7]} 70. Kb5
{[%clk 0:00:24.3]} 70... Qb7 {[%clk 0:00:35.3]} 0-1

[Event "*** MasterClass Titled Tuesday Blitz"]
[Site "Chess.com"]
[Date "2017.10.03"]
[Round "4"]
[White "josiwales"]
[Black "Masterbeaterr"]
[Result "1-0"]
[WhiteElo "2357"]
[BlackElo "2290"]
[TimeControl "180+2"]
[EndTime "13:46:29 PDT"]
[Termination "josiwales won by checkmate"]

1. e4 {[%clk 0:03:01.9]} 1... g6 {[%clk 0:03:01.9]} 2. d4 {[%clk 0:03:02]} 2...
Bg7 {[%clk 0:03:03.8]} 3. Nc3 {[%clk 0:03:03.4]} 3... c6 {[%clk 0:03:05]} 4. f4
{[%clk 0:03:04.5]} 4... d5 {[%clk 0:03:04.3]} 5. Nf3 {[%clk 0:03:05.8]} 5...
dxe4 {[%clk 0:03:03.9]} 6. Nxe4 {[%clk 0:03:07.1]} 6... Nd7 {[%clk 0:03:02.5]}
7. Bd3 {[%clk 0:03:06.1]} 7... Ngf6 {[%clk 0:03:03.2]} 8. c3 {[%clk 0:03:02.1]}
8... Nxe4 {[%clk 0:03:03.9]} 9. Bxe4 {[%clk 0:03:04]} 9... Nf6 {[%clk
0:03:05.6]} 10. Bc2 {[%clk 0:03:04.7]} 10... O-O {[%clk 0:03:07.2]} 11. O-O
{[%clk 0:03:05.2]} 11... Bf5 {[%clk 0:02:57.3]} 12. Bxf5 {[%clk 0:03:04.9]}
12... gxf5 {[%clk 0:02:59.2]} 13. Ne5 {[%clk 0:03:06.5]} 13... Ne4 {[%clk
0:02:58]} 14. g4 {[%clk 0:03:01.5]} 14... fxg4 {[%clk 0:02:54.3]} 15. Qxg4
{[%clk 0:03:03.4]} 15... Kh8 {[%clk 0:02:50]} 16. f5 {[%clk 0:03:02.2]} 16...
Nxc3 {[%clk 0:02:23.2]} 17. bxc3 {[%clk 0:02:46.4]} 17... Bxe5 {[%clk
0:02:23.7]} 18. dxe5 {[%clk 0:02:44.9]} 18... Rg8 {[%clk 0:02:24.1]} 19. Bg5
{[%clk 0:02:45.9]} 19... f6 {[%clk 0:02:21.6]} 20. h4 {[%clk 0:02:47]} 20... h6
{[%clk 0:02:17.4]} 21. Qh5 {[%clk 0:02:47.6]} 21... Qf8 {[%clk 0:02:15.5]} 22.
Kh2 {[%clk 0:02:34]} 22... fxg5 {[%clk 0:02:16.6]} 23. f6 {[%clk 0:02:35.2]}
23... Kh7 {[%clk 0:02:03.3]} 24. fxe7 {[%clk 0:02:31.5]} 24... Qe8 {[%clk
0:01:55.2]} 25. Rf7+ {[%clk 0:02:32.3]} 25... Rg7 {[%clk 0:01:56.5]} 26. Raf1
{[%clk 0:02:33.5]} 26... Rc8 {[%clk 0:01:50.4]} 27. R1f6 {[%clk 0:02:31.5]}
27... Kg8 {[%clk 0:01:42]} 28. Rxg7+ {[%clk 0:02:18.2]} 28... Kxg7 {[%clk
0:01:43]} 29. Qxh6+ {[%clk 0:02:19.7]} 29... Kg8 {[%clk 0:01:44.3]} 30. Rg6+
{[%clk 0:02:21.2]} 30... Kf7 {[%clk 0:01:45.7]} 31. Qg7# {[%clk 0:02:22.4]} 1-0

[Event "*** MasterClass Titled Tuesday Blitz"]
[Site "Chess.com"]
[Date "2017.10.03"]
[Round "4"]
[White "cheese111"]
[Black "MatthewG-p4p"]
[Result "1-0"]
[WhiteElo "2365"]
[BlackElo "2580"]
[TimeControl "180+2"]
[EndTime "13:47:06 PDT"]
[Termination "cheese111 won by resignation"]

1. e4 {[%clk 0:03:01.9]} 1... e6 {[%clk 0:02:49.1]} 2. d4 {[%clk 0:03:02]} 2...
d5 {[%clk 0:02:50.4]} 3. exd5 {[%clk 0:03:03.9]} 3... exd5 {[%clk 0:02:51.8]} 4.
Nf3 {[%clk 0:03:05.5]} 4... Bd6 {[%clk 0:02:51.2]} 5. c4 {[%clk 0:03:06.6]} 5...
c6 {[%clk 0:02:52.6]} 6. Nc3 {[%clk 0:03:05.7]} 6... Ne7 {[%clk 0:02:53.6]} 7.
Bd3 {[%clk 0:03:07.2]} 7... dxc4 {[%clk 0:02:53.7]} 8. Bxc4 {[%clk 0:03:08]}
8... O-O {[%clk 0:02:55.4]} 9. O-O {[%clk 0:03:08.7]} 9... Nd7 {[%clk
0:02:55.2]} 10. Bg5 {[%clk 0:03:04.9]} 10... h6 {[%clk 0:02:54.6]} 11. Bh4
{[%clk 0:03:05.6]} 11... Qc7 {[%clk 0:02:55.8]} 12. Bg3 {[%clk 0:02:50]} 12...
Nf5 {[%clk 0:02:55.5]} 13. Re1 {[%clk 0:02:44.3]} 13... Nf6 {[%clk 0:02:51.7]}
14. Ne5 {[%clk 0:02:40]} 14... Nxg3 {[%clk 0:02:48.6]} 15. hxg3 {[%clk
0:02:39.9]} 15... b5 {[%clk 0:02:46]} 16. Bb3 {[%clk 0:02:38.8]} 16... a5 {[%clk
0:02:47.1]} 17. Rc1 {[%clk 0:02:37]} 17... Qb6 {[%clk 0:02:47.7]} 18. Qf3 {[%clk
0:02:27.9]} 18... Bb7 {[%clk 0:02:44]} 19. Ne4 {[%clk 0:02:07.5]} 19... Nxe4
{[%clk 0:02:42.2]} 20. Bxf7+ {[%clk 0:02:01.9]} 20... Rxf7 {[%clk 0:02:20.3]}
21. Qxf7+ {[%clk 0:02:03.8]} 21... Kh8 {[%clk 0:02:21.6]} 22. Rxe4 {[%clk
0:02:01.2]} 22... Rd8 {[%clk 0:02:04.5]} 23. Rg4 {[%clk 0:01:36.1]} 23... Rg8
{[%clk 0:01:57.3]} 24. Ng6+ {[%clk 0:01:32.9]} 24... Kh7 {[%clk 0:01:57.8]} 25.
Qf5 {[%clk 0:01:30]} 25... Re8 {[%clk 0:01:55.8]} 26. Ne5+ {[%clk 0:01:26.3]}
26... Kh8 {[%clk 0:01:56.2]} 27. Nf7+ {[%clk 0:01:26.8]} 1-0

[Event "*** MasterClass Titled Tuesday Blitz"]
[Site "Chess.com"]
[Date "2017.10.03"]
[Round "4"]
[White "Jungle_Jaguar"]
[Black "nutibara"]
[Result "1-0"]
[WhiteElo "2389"]
[BlackElo "2292"]
[TimeControl "180+2"]
[EndTime "13:47:40 PDT"]
[Termination "Jungle_Jaguar won by resignation"]

1. e4 {[%clk 0:03:01.9]} 1... c5 {[%clk 0:03:00.9]} 2. Nf3 {[%clk 0:03:03.2]}
2... Nc6 {[%clk 0:03:01.1]} 3. d4 {[%clk 0:03:04.7]} 3... cxd4 {[%clk 0:03:03]}
4. Nxd4 {[%clk 0:03:06.4]} 4... Nf6 {[%clk 0:03:04.5]} 5. Nc3 {[%clk 0:03:08]}
5... e6 {[%clk 0:03:05.8]} 6. Nxc6 {[%clk 0:03:03.1]} 6... bxc6 {[%clk
0:03:06.5]} 7. e5 {[%clk 0:03:04]} 7... Nd5 {[%clk 0:03:07.8]} 8. Nxd5 {[%clk
0:03:04.1]} 8... cxd5 {[%clk 0:03:08.6]} 9. Bd3 {[%clk 0:03:04]} 9... Qc7 {[%clk
0:03:09.6]} 10. Bf4 {[%clk 0:03:02.8]} 10... Rb8 {[%clk 0:03:04.6]} 11. Qc1
{[%clk 0:02:50.7]} 11... Ba6 {[%clk 0:02:48]} 12. O-O {[%clk 0:02:13.5]} 12...
Bxd3 {[%clk 0:02:47.9]} 13. cxd3 {[%clk 0:02:15.4]} 13... Qxc1 {[%clk
0:02:48.2]} 14. Rfxc1 {[%clk 0:02:15]} 14... Rxb2 {[%clk 0:01:25.2]} 15. Rc8+
{[%clk 0:02:11.1]} 15... Ke7 {[%clk 0:01:26.1]} 16. Bc1 {[%clk 0:02:12.6]} 16...
Rb6 {[%clk 0:00:39.4]} 17. Ba3+ {[%clk 0:02:08.3]} 17... d6 {[%clk 0:00:40.2]}
18. Bxd6+ {[%clk 0:02:09.7]} 18... Rxd6 {[%clk 0:00:38.7]} 19. exd6+ {[%clk
0:02:09.7]} 19... Kxd6 {[%clk 0:00:39.7]} 20. Rb1 {[%clk 0:02:10.8]} 20... g6
{[%clk 0:00:20]} 21. Rbb8 {[%clk 0:02:10.6]} 21... Ke7 {[%clk 0:00:20.7]} 22.
Re8+ {[%clk 0:02:11.3]} 1-0

[Event "*** MasterClass Titled Tuesday Blitz"]
[Site "Chess.com"]
[Date "2017.10.03"]
[Round "4"]
[White "GameOverBro"]
[Black "SabinaFoisor"]
[Result "1-0"]
[WhiteElo "2301"]
[BlackElo "2261"]
[TimeControl "180+2"]
[EndTime "13:47:46 PDT"]
[Termination "GameOverBro won by resignation"]

1. e4 {[%clk 0:03:01.9]} 1... e5 {[%clk 0:02:53.5]} 2. Nf3 {[%clk 0:03:02.4]}
2... Nc6 {[%clk 0:02:53.5]} 3. Bb5 {[%clk 0:03:03]} 3... a6 {[%clk 0:02:54.2]}
4. Ba4 {[%clk 0:03:04.1]} 4... Nf6 {[%clk 0:02:54.3]} 5. d4 {[%clk 0:03:05.7]}
5... exd4 {[%clk 0:02:45.7]} 6. O-O {[%clk 0:03:06.7]} 6... Bc5 {[%clk
0:02:31.5]} 7. e5 {[%clk 0:03:07.3]} 7... Ne4 {[%clk 0:02:17.9]} 8. Qe2 {[%clk
0:02:51.4]} 8... Nxf2 {[%clk 0:01:08.9]} 9. Qxf2 {[%clk 0:02:38.7]} 9... O-O
{[%clk 0:01:06.9]} 10. Nbd2 {[%clk 0:02:31.6]} 10... Ba7 {[%clk 0:00:41.5]} 11.
Kh1 {[%clk 0:02:27.6]} 11... d3 {[%clk 0:00:26.9]} 12. Qg3 {[%clk 0:02:27.5]}
12... b5 {[%clk 0:00:22.7]} 13. Bb3 {[%clk 0:02:25.3]} 13... Nb4 {[%clk
0:00:17.5]} 14. Ne4 {[%clk 0:02:22.5]} 14... dxc2 {[%clk 0:00:14.5]} 15. Nf6+
{[%clk 0:02:19.8]} 15... Kh8 {[%clk 0:00:15.1]} 16. Qh4 {[%clk 0:02:19]} 16...
gxf6 {[%clk 0:00:13.4]} 17. Qxb4 {[%clk 0:02:12.7]} 17... Rg8 {[%clk 0:00:11.8]}
18. Qh4 {[%clk 0:01:59.5]} 18... fxe5 {[%clk 0:00:10.6]} 19. Ng5 {[%clk
0:01:55.7]} 19... Rxg5 {[%clk 0:00:07.7]} 20. Bxg5 {[%clk 0:01:56.3]} 1-0

[Event "*** MasterClass Titled Tuesday Blitz"]
[Site "Chess.com"]
[Date "2017.10.03"]
[Round "4"]
[White "lukas_111111"]
[Black "amaidel"]
[Result "1-0"]
[WhiteElo "2365"]
[BlackElo "2450"]
[TimeControl "180+2"]
[EndTime "13:47:53 PDT"]
[Termination "lukas_111111 won by resignation"]

1. e4 {[%clk 0:03:01.9]} 1... e5 {[%clk 0:03:00.5]} 2. Nf3 {[%clk 0:03:02.5]}
2... Nf6 {[%clk 0:03:02]} 3. Nxe5 {[%clk 0:03:02.1]} 3... d6 {[%clk 0:03:03.2]}
4. Nf3 {[%clk 0:03:02.1]} 4... Nxe4 {[%clk 0:03:04.7]} 5. d4 {[%clk 0:03:03.1]}
5... d5 {[%clk 0:03:05.9]} 6. Bd3 {[%clk 0:03:04.7]} 6... Be7 {[%clk 0:03:06.9]}
7. O-O {[%clk 0:03:05.4]} 7... O-O {[%clk 0:03:07.8]} 8. c4 {[%clk 0:03:06.6]}
8... Nf6 {[%clk 0:03:06.3]} 9. Nc3 {[%clk 0:03:01]} 9... Nc6 {[%clk 0:03:06.9]}
10. cxd5 {[%clk 0:03:00]} 10... Nxd5 {[%clk 0:03:07.4]} 11. h3 {[%clk
0:03:01.1]} 11... Be6 {[%clk 0:03:01.6]} 12. a3 {[%clk 0:03:00.9]} 12... Bf6
{[%clk 0:03:01.6]} 13. Bc2 {[%clk 0:02:57.5]} 13... g6 {[%clk 0:03:01]} 14. Bh6
{[%clk 0:02:48.8]} 14... Re8 {[%clk 0:03:01.6]} 15. Ne4 {[%clk 0:02:49.8]} 15...
Bh8 {[%clk 0:02:54]} 16. Nc5 {[%clk 0:02:42.9]} 16... Bc8 {[%clk 0:02:43.8]} 17.
Bg5 {[%clk 0:02:41.8]} 17... Bf6 {[%clk 0:02:41.2]} 18. Bxf6 {[%clk 0:02:38.1]}
18... Qxf6 {[%clk 0:02:41.7]} 19. Bb3 {[%clk 0:02:26.1]} 19... Nce7 {[%clk
0:02:35.3]} 20. Re1 {[%clk 0:02:21.9]} 20... Rd8 {[%clk 0:02:29.6]} 21. Ne4
{[%clk 0:02:13.6]} 21... Qb6 {[%clk 0:02:22.4]} 22. Ne5 {[%clk 0:02:09.1]} 22...
h6 {[%clk 0:02:03.6]} 23. Nc4 {[%clk 0:01:58]} 23... Qb5 {[%clk 0:01:48]} 24.
Rc1 {[%clk 0:01:54.7]} 24... Be6 {[%clk 0:01:45.9]} 25. Ba4 {[%clk 0:01:48.3]}
25... Ne3 {[%clk 0:01:02.3]} 26. Rxe3 {[%clk 0:01:33]} 1-0

[Event "*** MasterClass Titled Tuesday Blitz"]
[Site "Chess.com"]
[Date "2017.10.03"]
[Round "4"]
[White "NTBT_DHS"]
[Black "catalin009"]
[Result "1-0"]
[WhiteElo "2504"]
[BlackElo "2349"]
[TimeControl "180+2"]
[EndTime "13:47:56 PDT"]
[Termination "NTBT_DHS won by resignation"]

1. d4 {[%clk 0:03:01.9]} 1... f5 {[%clk 0:02:59.6]} 2. g3 {[%clk 0:03:02.6]}
2... Nf6 {[%clk 0:03:00.5]} 3. Bg2 {[%clk 0:03:04]} 3... e6 {[%clk 0:03:02.1]}
4. h4 {[%clk 0:03:04.3]} 4... Be7 {[%clk 0:02:57.6]} 5. h5 {[%clk 0:03:04.7]}
5... h6 {[%clk 0:02:48.6]} 6. Nh3 {[%clk 0:03:05]} 6... O-O {[%clk 0:02:16.6]}
7. Nf4 {[%clk 0:03:04.5]} 7... d6 {[%clk 0:02:16.7]} 8. Ng6 {[%clk 0:03:04]}
8... Re8 {[%clk 0:02:17.1]} 9. Nc3 {[%clk 0:03:01.7]} 9... Nc6 {[%clk
0:02:05.3]} 10. d5 {[%clk 0:03:01.6]} 10... Ne5 {[%clk 0:01:35.7]} 11. dxe6
{[%clk 0:02:58.2]} 11... c6 {[%clk 0:01:14.9]} 12. Nf4 {[%clk 0:02:49]} 12...
Bf8 {[%clk 0:01:12.6]} 13. Bh3 {[%clk 0:02:49.2]} 13... Bxe6 {[%clk 0:00:51.1]}
14. Nxe6 {[%clk 0:02:48.6]} 14... Rxe6 {[%clk 0:00:53]} 15. Bxf5 {[%clk
0:02:49.7]} 15... Nf3+ {[%clk 0:00:54.9]} 16. Kf1 {[%clk 0:02:50.7]} 16... Re5
{[%clk 0:00:56.3]} 17. Bg6 {[%clk 0:02:45.2]} 17... Ng5 {[%clk 0:00:43.1]} 18.
f4 {[%clk 0:02:44.6]} 18... Nd5 {[%clk 0:00:44.4]} 19. fxe5 {[%clk 0:02:40.8]}
19... Nxc3 {[%clk 0:00:43.8]} 20. bxc3 {[%clk 0:02:40.3]} 20... d5 {[%clk
0:00:45.7]} 21. Kg2 {[%clk 0:02:32.6]} 21... Bc5 {[%clk 0:00:45.9]} 22. Rf1
{[%clk 0:02:33.1]} 22... Qe7 {[%clk 0:00:46.6]} 23. Rf5 {[%clk 0:02:32.2]} 23...
Ne4 {[%clk 0:00:45.3]} 24. Qd3 {[%clk 0:02:18.1]} 24... b5 {[%clk 0:00:37]} 25.
Be3 {[%clk 0:02:17.7]} 25... Rd8 {[%clk 0:00:31.6]} 26. Raf1 {[%clk 0:02:16.6]}
26... a5 {[%clk 0:00:26.7]} 27. Rf7 {[%clk 0:02:12.7]} 27... Qxe5 {[%clk
0:00:26.9]} 28. Bxc5 {[%clk 0:02:13.8]} 28... Nxc5 {[%clk 0:00:24.2]} 29. Bh7+
{[%clk 0:02:15]} 29... Kh8 {[%clk 0:00:25.8]} 30. Rf8+ {[%clk 0:02:16.3]} 1-0